[Event "44th Chess Olympiad Women 2022"]
[Site "Chennai"]
[Date "2022.08.10"]
[Round "11.6"]
[White "Wagner, Dinara"]
[Black "Citra, Dewi Ardhiani Anasta"]
[Result "1-0"]
[ECO "A44"]
[WhiteElo "2341"]
[BlackElo "2257"]
[Annotator "ChessBase"]
[PlyCount "115"]
[EventDate "2022.07.29"]
[EventType "team-tourn"]
[EventCountry "IND"]
[SourceTitle "playchess.com"]
[Source "ChessBase"]
[SourceQuality "1"]
[WhiteTeam "Germany"]
[BlackTeam "Indonesia"]
[WhiteTeamCountry "GER"]
[BlackTeamCountry "INA"]
[TimeControl "40/5400+30:1800+30"]

1. d4 {[%emt 0:00:02]} c5 {[%emt 0:00:10]} 2. d5 {[%emt 0:00:34]} e5 {[%emt 0:00:07]} 3. c4 {[%emt 0:05:13]} d6 {[%emt 0:00:17]} 4. e4 {[%emt 0:00:28]} Be7 {[%emt 0:00:20]} 5. Nc3 {[%emt 0:07:09]} Bg5 {[%emt 0:07:00]} 6. Nf3 {[%emt 0:02:49]} Bxc1 {[%emt 0:00:45]} 7. Rxc1 {[%emt 0:00:35]} Ne7 {[%emt 0:03:50]} 8. Bd3 {[%emt 0:08:03]} Ng6 {[%emt 0:01:10]} 9. g3 {[%emt 0:05:39]} Bh3 {[%emt 0:06:21]} 10. Bf1 {[%emt 0:07:12]} Bxf1 {[%emt 0:02:30]} 11. Kxf1 {[%emt 0:00:52]} O-O {[%emt 0:01:25]} 12. Kg2 {[%emt 0:01:15]} Nd7 {[%emt 0:01:45]} 13. Qd3 {[%emt 0:02:58]} a6 {[%emt 0:02:31]} 14. h4 {[%emt 0:07:05]} Ne7 {[%emt 0:05:46]} 15. h5 {[%emt 0:03:28]} h6 {[%emt 0:05:45]} 16. Nh4 {[%emt 0:02:47]} Nf6 {[%emt 0:00:21]} 17. Qe2 {[%emt 0:01:57]} Qd7 {[%emt 0:03:30]} 18. f4 {[%emt 0:11:59]} exf4 {[%emt 0:08:04]} 19. gxf4 {[%emt 0:00:11]} Rae8 {[%emt 0:00:27]} 20. Rhg1 {[%emt 0:07:23]} Qg4+ {[%emt 0:20:45]} 21. Qxg4 {[%emt 0:00:14]} Nxg4 {[%emt 0:00:06]} 22. Kf3 {[%emt 0:01:00]} Nf6 {[%emt 0:02:23]} 23. e5 {[%emt 0:00:35]} dxe5 {[%emt 0:02:29]} 24. fxe5 {[%emt 0:00:11]} Nxh5 {[%emt 0:00:20]} 25. Rce1 {[%emt 0:03:36]} Ng6 {[%emt 0:02:13]} 26. Nxg6 {[%emt 0:01:31]} fxg6+ {[%emt 0:00:02]} 27. Ke4 {[%emt 0:00:28]} b5 {[%emt 0:04:22]} 28. e6 {[%emt 0:04:02]} bxc4 {[%emt 0:04:08]} 29. Ke5 {[%emt 0:03:54]} Nf4 {[%emt 0:01:07]} 30. Kd6 {[%emt 0:00:40]} Rd8+ {[%emt 0:02:34]} 31. Kc6 {[%emt 0:00:45]} Rc8+ {[%emt 0:00:57]} 32. Kb6 {[%emt 0:00:17]} Rb8+ {[%emt 0:00:30]} 33. Ka5 {[%emt 0:00:30]} Rfe8 {[%emt 0:09:39]} 34. e7 {[%emt 0:03:11]} Rb7 {[%emt 0:00:24]} 35. d6 {[%emt 0:00:35]} Nd3 {[%emt 0:00:42]} 36. Re4 {[%emt 0:05:15]} Nb4 {[%emt 0:00:45]} 37. Rxg6 {[%emt 0:00:59]} Kf7 {[%emt 0:01:06]} 38. Rg2 {[%emt 0:02:28]} Nc6+ {[%emt 0:01:10]} 39. Ka4 {[%emt 0:00:07]} Nxe7 {[%emt 0:01:34]} 40. Rf2+ {[%emt 0:00:41]} Kg6 {[%emt 0:00:28]} 41. Re6+ {[%emt 0:31:18]} Kh5 {[%emt 0:30:33]} 42. Rfe2 {[%emt 0:00:00]} Rb4+ {[%emt 0:00:00]} 43. Ka3 {[%emt 0:00:00]} Nc8 {[%emt 0:00:00]} 44. Rxe8 {[%emt 0:00:00]} Nxd6 {[%emt 0:00:00]} 45. R8e5+ {[%emt 0:00:00]} g5 {[%emt 0:00:00]} 46. Rxc5 {[%emt 0:00:00]} Rb6 {[%emt 0:00:00]} 47. Rd2 {[%emt 0:00:00]} Kh4 {[%emt 0:00:00]} 48. Rcd5 {[%emt 0:00:00]} Nb5+ {[%emt 0:00:00]} 49. Nxb5 {[%emt 0:00:00]} axb5 {[%emt 0:00:00]} 50. Kb4 {[%emt 0:00:00]} g4 {[%emt 0:00:00]} 51. Rh2+ {[%emt 0:00:00]} Kg3 {[%emt 0:00:00]} 52. Rdh5 {[%emt 0:00:00]} Ra6 {[%emt 0:00:00]} 53. a3 {[%emt 0:00:00]} Kf3 {[%emt 0:00:00]} 54. Rxh6 {[%emt 0:00:00]} Ra8 {[%emt 0:00:00]} 55. Rg6 {[%emt 0:00:00]} Rc8 {[%emt 0:00:00]} 56. Rh4 {[%emt 0:00:00]} c3 {[%emt 0:00:00]} 57. bxc3 {[%emt 0:00:00]} Rc4+ {[%emt 0:00:00]} 58. Kb3 {[%emt 0:00:00]} 1-0

[Event "44th Chess Olympiad Women 2022"]
[Site "Chennai"]
[Date "2022.08.10"]
[Round "11.6"]
[White "Heinemann, Josefine"]
[Black "Aulia, Medina Warda"]
[Result "1/2-1/2"]
[ECO "C07"]
[WhiteElo "2321"]
[BlackElo "2374"]
[Annotator "ChessBase"]
[PlyCount "71"]
[EventDate "2022.07.29"]
[EventType "team-tourn"]
[EventCountry "IND"]
[SourceTitle "playchess.com"]
[Source "ChessBase"]
[SourceQuality "1"]
[WhiteTeam "Germany"]
[BlackTeam "Indonesia"]
[WhiteTeamCountry "GER"]
[BlackTeamCountry "INA"]
[TimeControl "40/5400+30:1800+30"]

1. e4 {[%emt 0:00:03]} e6 {[%emt 0:02:32]} 2. d4 {[%emt 0:00:06]} d5 {[%emt 0:00:05]} 3. Nd2 {[%emt 0:00:04]} c5 {[%emt 0:00:29]} 4. exd5 {[%emt 0:03:19]} Qxd5 {[%emt 0:02:05]} 5. Ngf3 {[%emt 0:00:05]} cxd4 {[%emt 0:00:12]} 6. Bc4 {[%emt 0:00:16]} Qd7 {[%emt 0:00:05]} 7. O-O {[%emt 0:00:05]} a6 {[%emt 0:00:34]} 8. a4 {[%emt 0:03:34]} Nc6 {[%emt 0:01:24]} 9. Nb3 {[%emt 0:00:39]} Nf6 {[%emt 0:01:37]} 10. Qe2 {[%emt 0:01:53]} Bd6 {[%emt 0:02:57]} 11. Rd1 {[%emt 0:02:29]} e5 {[%emt 0:07:36]} 12. Nbxd4 {[%emt 0:00:36]} O-O {[%emt 0:01:19]} 13. Nxc6 {[%emt 0:03:03]} Qxc6 {[%emt 0:00:26]} 14. Bg5 {[%emt 0:05:08]} Bc7 {[%emt 0:01:20]} 15. h3 {[%emt 0:07:00]} h6 {[%emt 0:06:08]} 16. Be3 {[%emt 0:04:54]} Be6 {[%emt 0:03:51]} 17. Bxe6 {[%emt 0:04:25]} Qxe6 {[%emt 0:00:05]} 18. Ra3 {[%emt 0:01:58]} e4 {[%emt 0:07:26]} 19. Nd2 {[%emt 0:02:36]} Rad8 {[%emt 0:01:10]} 20. Nf1 {[%emt 0:02:49]} Rxd1 {[%emt 0:01:08]} 21. Qxd1 {[%emt 0:00:03]} Rd8 {[%emt 0:00:04]} 22. Qe2 {[%emt 0:00:33]} Rd7 {[%emt 0:00:15]} 23. Ra1 {[%emt 0:06:00]} Nd5 {[%emt 0:09:02]} 24. Qc4 {[%emt 0:05:29]} f5 {[%emt 0:07:17]} 25. Rd1 {[%emt 0:06:01]} Kh7 {[%emt 0:00:41]} 26. Bc1 {[%emt 0:05:51]} Qe5 {[%emt 0:07:39]} 27. g3 {[%emt 0:06:45]} Nb6 {[%emt 0:03:00]} 28. Qe2 {[%emt 0:00:39]} Re7 {[%emt 0:05:24]} 29. b3 {[%emt 0:02:57]} Qe6 {[%emt 0:00:09]} 30. Bb2 {[%emt 0:03:50]} f4 {[%emt 0:07:34]} 31. gxf4 {[%emt 0:01:55]} Qxh3 {[%emt 0:00:23]} 32. Be5 {[%emt 0:01:55]} Qf3 {[%emt 0:11:13]} 33. Qxf3 {[%emt 0:00:12]} exf3 {[%emt 0:00:05]} 34. Nh2 {[%emt 0:02:10]} Bxe5 {[%emt 0:00:48]} 35. fxe5 {[%emt 0:00:04]} Rxe5 {[%emt 0:00:03]} 36. Nxf3 {[%emt 0:00:25]} 1/2-1/2

[Event "44th Chess Olympiad Women 2022"]
[Site "Chennai"]
[Date "2022.08.10"]
[Round "11.6"]
[White "Mariroh, Fariha"]
[Black "Klek, Hanna Marie"]
[Result "1/2-1/2"]
[ECO "C54"]
[WhiteElo "1839"]
[BlackElo "2366"]
[Annotator "ChessBase"]
[PlyCount "67"]
[EventDate "2022.07.29"]
[EventType "team-tourn"]
[EventCountry "IND"]
[SourceTitle "playchess.com"]
[Source "ChessBase"]
[SourceQuality "1"]
[WhiteTeam "Indonesia"]
[BlackTeam "Germany"]
[WhiteTeamCountry "INA"]
[BlackTeamCountry "GER"]
[TimeControl "40/5400+30:1800+30"]

1. e4 {[%emt 0:00:06]} e5 {[%emt 0:00:07]} 2. Nf3 {[%emt 0:00:12]} Nc6 {[%emt 0:00:07]} 3. Bc4 {[%emt 0:00:07]} Bc5 {[%emt 0:00:06]} 4. c3 {[%emt 0:00:07]} Nf6 {[%emt 0:00:09]} 5. d4 {[%emt 0:01:01]} exd4 {[%emt 0:00:08]} 6. cxd4 {[%emt 0:00:05]} Bb4+ {[%emt 0:00:08]} 7. Bd2 {[%emt 0:00:22]} Nxe4 {[%emt 0:00:18]} 8. Bxb4 {[%emt 0:00:36]} Nxb4 {[%emt 0:00:07]} 9. Bxf7+ {[%emt 0:01:31]} Kxf7 {[%emt 0:00:08]} 10. Qb3+ {[%emt 0:00:05]} Kf8 {[%emt 0:00:06]} 11. Qxb4+ {[%emt 0:00:22]} Qe7 {[%emt 0:00:07]} 12. Qxe7+ {[%emt 0:00:41]} Kxe7 {[%emt 0:00:06]} 13. Nc3 {[%emt 0:01:25]} Nxc3 {[%emt 0:04:25]} 14. bxc3 {[%emt 0:03:54]} b6 {[%emt 0:00:35]} 15. Kd2 {[%emt 0:02:09]} Rf8 {[%emt 0:04:23]} 16. Rhe1+ {[%emt 0:04:01]} Kd6 {[%emt 0:00:41]} 17. Re3 {[%emt 0:22:30]} Bb7 {[%emt 0:02:59]} 18. Kd3 {[%emt 0:04:35]} Bxf3 {[%emt 0:04:57]} 19. gxf3 {[%emt 0:00:06]} Rf5 {[%emt 0:00:38]} 20. Rg1 {[%emt 0:00:42]} g6 {[%emt 0:00:18]} 21. Rg4 {[%emt 0:02:15]} Rh5 {[%emt 0:05:08]} 22. Rf4 {[%emt 0:01:33]} Rf5 {[%emt 0:05:32]} 23. Rxf5 {[%emt 0:01:24]} gxf5 {[%emt 0:00:06]} 24. Re5 {[%emt 0:00:23]} Rf8 {[%emt 0:00:17]} 25. h4 {[%emt 0:09:26]} Rf6 {[%emt 0:01:48]} 26. h5 {[%emt 0:00:41]} c5 {[%emt 0:06:05]} 27. Kc4 {[%emt 0:11:25]} cxd4 {[%emt 0:02:16]} 28. cxd4 {[%emt 0:00:03]} a6 {[%emt 0:01:26]} 29. a4 {[%emt 0:02:01]} f4 {[%emt 0:09:03]} 30. Rd5+ {[%emt 0:09:35]} Ke6 {[%emt 0:11:36]} 31. Re5+ {[%emt 0:00:34]} Kd6 {[%emt 0:20:03]} 32. Rd5+ {[%emt 0:00:35]} Ke6 {[%emt 0:05:53]} 33. Re5+ {[%emt 0:03:58]} Kd6 {[%emt 0:00:33]} 34. Rd5+ {[%emt 0:00:53]} 1/2-1/2

[Event "44th Chess Olympiad Women 2022"]
[Site "Chennai"]
[Date "2022.08.10"]
[Round "11.7"]
[White "Sargsyan, Anna M."]
[Black "Berke, Ana"]
[Result "1-0"]
[ECO "B51"]
[WhiteElo "2378"]
[BlackElo "2163"]
[Annotator "ChessBase"]
[PlyCount "63"]
[EventDate "2022.07.29"]
[EventType "team-tourn"]
[EventCountry "IND"]
[SourceTitle "playchess.com"]
[Source "ChessBase"]
[SourceQuality "1"]
[WhiteTeam "Armenia"]
[BlackTeam "Croatia"]
[WhiteTeamCountry "ARM"]
[BlackTeamCountry "CRO"]
[TimeControl "40/5400+30:1800+30"]

1. e4 {[%emt 0:00:02]} c5 {[%emt 0:00:31]} 2. Nf3 {[%emt 0:00:05]} d6 {[%emt 0:00:23]} 3. Bb5+ {[%emt 0:00:09]} Nd7 {[%emt 0:00:29]} 4. O-O {[%emt 0:00:08]} a6 {[%emt 0:00:03]} 5. Bd3 {[%emt 0:00:05]} b5 {[%emt 0:02:21]} 6. c3 {[%emt 0:00:07]} Ngf6 {[%emt 0:00:10]} 7. Bc2 {[%emt 0:00:07]} Bb7 {[%emt 0:00:06]} 8. Re1 {[%emt 0:00:03]} e5 {[%emt 0:00:53]} 9. d3 {[%emt 0:00:27]} Be7 {[%emt 0:01:34]} 10. Nbd2 {[%emt 0:00:08]} O-O {[%emt 0:01:06]} 11. Nf1 {[%emt 0:00:04]} Re8 {[%emt 0:01:28]} 12. Ng3 {[%emt 0:00:07]} g6 {[%emt 0:01:22]} 13. h4 {[%emt 0:08:14]} c4 {[%emt 0:04:49]} 14. d4 {[%emt 0:00:12]} Bf8 {[%emt 0:02:53]} 15. h5 {[%emt 0:00:23]} Bg7 {[%emt 0:03:27]} 16. b3 {[%emt 0:04:02]} Qc8 {[%emt 0:03:14]} 17. bxc4 {[%emt 0:04:22]} bxc4 {[%emt 0:01:01]} 18. Ba3 {[%emt 0:01:34]} d5 {[%emt 0:02:21]} 19. hxg6 {[%emt 0:05:07]} hxg6 {[%emt 0:00:23]} 20. exd5 {[%emt 0:03:18]} Nxd5 {[%emt 0:01:42]} 21. Ne4 {[%emt 0:02:17]} exd4 {[%emt 0:04:18]} 22. Nd6 {[%emt 0:07:11]} Rxe1+ {[%emt 0:02:54]} 23. Qxe1 {[%emt 0:00:02]} Qc7 {[%emt 0:02:59]} 24. Bxg6 {[%emt 0:02:54]} Rf8 {[%emt 0:15:30]} 25. Ng5 {[%emt 0:03:01]} Ne5 {[%emt 0:11:25]} 26. Bh7+ {[%emt 0:03:12]} Kh8 {[%emt 0:00:29]} 27. Nxb7 {[%emt 0:07:05]} Re8 {[%emt 0:02:58]} 28. Nd6 {[%emt 0:00:12]} Nf3+ {[%emt 0:01:44]} 29. gxf3 {[%emt 0:00:05]} Rxe1+ {[%emt 0:00:17]} 30. Rxe1 {[%emt 0:00:02]} Bf8 {[%emt 0:03:07]} 31. Re8 {[%emt 0:00:54]} Kg7 {[%emt 0:01:48]} 32. Nf5+ {[%emt 0:00:05]} 1-0

[Event "44th Chess Olympiad Women 2022"]
[Site "Chennai"]
[Date "2022.08.10"]
[Round "11.7"]
[White "Gaboyan, Susanna"]
[Black "Ivekovic, Tihana"]
[Result "1/2-1/2"]
[ECO "E04"]
[WhiteElo "2270"]
[BlackElo "2082"]
[Annotator "ChessBase"]
[PlyCount "147"]
[EventDate "2022.07.29"]
[EventType "team-tourn"]
[EventCountry "IND"]
[SourceTitle "playchess.com"]
[Source "ChessBase"]
[SourceQuality "1"]
[WhiteTeam "Armenia"]
[BlackTeam "Croatia"]
[WhiteTeamCountry "ARM"]
[BlackTeamCountry "CRO"]
[TimeControl "40/5400+30:1800+30"]

1. Nf3 {[%emt 0:00:04]} d5 {[%emt 0:00:06]} 2. g3 {[%emt 0:00:16]} e6 {[%emt 0:00:05]} 3. Bg2 {[%emt 0:00:14]} c5 {[%emt 0:00:17]} 4. O-O {[%emt 0:00:32]} Nc6 {[%emt 0:00:05]} 5. d4 {[%emt 0:00:06]} Nf6 {[%emt 0:00:08]} 6. c4 {[%emt 0:00:10]} dxc4 {[%emt 0:00:09]} 7. Qa4 {[%emt 0:00:13]} Bd7 {[%emt 0:00:34]} 8. dxc5 {[%emt 0:00:42]} Qa5 {[%emt 0:03:52]} 9. Qxc4 {[%emt 0:00:40]} Qxc5 {[%emt 0:00:05]} 10. Na3 {[%emt 0:02:10]} Qxc4 {[%emt 0:02:22]} 11. Nxc4 {[%emt 0:00:08]} Be7 {[%emt 0:00:08]} 12. Nfe5 {[%emt 0:02:34]} O-O {[%emt 0:02:21]} 13. Nxd7 {[%emt 0:03:02]} Nxd7 {[%emt 0:00:56]} 14. Be3 {[%emt 0:01:06]} Rfd8 {[%emt 0:22:33]} 15. Rfd1 {[%emt 0:00:45]} Rac8 {[%emt 0:12:18]} 16. Nd6 {[%emt 0:01:07]} Bxd6 {[%emt 0:00:00]} 17. Rxd6 {[%emt 0:00:08]} Nb6 {[%emt 0:00:00]} 18. Rxd8+ {[%emt 0:01:08]} Rxd8 {[%emt 0:00:19]} 19. Rc1 {[%emt 0:03:33]} Nd5 {[%emt 0:00:37]} 20. Bc5 {[%emt 0:00:20]} h6 {[%emt 0:03:02]} 21. Rd1 {[%emt 0:04:44]} Nb6 {[%emt 0:02:32]} 22. Rxd8+ {[%emt 0:05:30]} Nxd8 {[%emt 0:00:06]} 23. Kf1 {[%emt 0:01:58]} f6 {[%emt 0:00:24]} 24. Ke1 {[%emt 0:01:10]} Kf7 {[%emt 0:00:51]} 25. Kd2 {[%emt 0:00:08]} Nc8 {[%emt 0:00:58]} 26. Kd3 {[%emt 0:00:42]} a6 {[%emt 0:03:06]} 27. Kc4 {[%emt 0:01:23]} Ke8 {[%emt 0:01:27]} 28. h4 {[%emt 0:01:24]} h5 {[%emt 0:02:46]} 29. Be4 {[%emt 0:02:13]} Kf7 {[%emt 0:04:37]} 30. b4 {[%emt 0:02:37]} b6 {[%emt 0:04:17]} 31. Be3 {[%emt 0:08:54]} Nd6+ {[%emt 0:00:08]} 32. Kd3 {[%emt 0:00:01]} Nxe4 {[%emt 0:00:07]} 33. Bxb6 {[%emt 0:07:48]} Nc6 {[%emt 0:00:21]} 34. Kxe4 {[%emt 0:00:13]} Nxb4 {[%emt 0:00:05]} 35. a3 {[%emt 0:01:44]} Nc6 {[%emt 0:00:15]} 36. Bc5 {[%emt 0:02:04]} Nd8 {[%emt 0:05:16]} 37. Kd4 {[%emt 0:00:49]} Nb7 {[%emt 0:00:09]} 38. Bb4 {[%emt 0:01:13]} Ke8 {[%emt 0:00:50]} 39. Ke4 {[%emt 0:00:14]} Kf7 {[%emt 0:03:28]} 40. f3 {[%emt 0:02:56]} g6 {[%emt 0:01:43]} 41. Kd4 {[%emt 0:33:15]} Ke8 {[%emt 0:30:56]} 42. g4 {[%emt 0:05:08]} Kf7 {[%emt 0:00:46]} 43. Bd2 {[%emt 0:00:22]} Ke7 {[%emt 0:03:03]} 44. g5 {[%emt 0:00:50]} fxg5 {[%emt 0:02:20]} 45. Bxg5+ {[%emt 0:00:09]} Kd6 {[%emt 0:00:04]} 46. Bf4+ {[%emt 0:00:57]} Ke7 {[%emt 0:00:21]} 47. Ke5 {[%emt 0:02:25]} Na5 {[%emt 0:00:30]} 48. Bg5+ {[%emt 0:01:09]} Kf7 {[%emt 0:00:46]} 49. Kd4 {[%emt 0:00:06]} Nb7 {[%emt 0:00:32]} 50. e4 {[%emt 0:07:18]} Ke8 {[%emt 0:02:39]} 51. Ke5 {[%emt 0:00:17]} Kf7 {[%emt 0:00:05]} 52. Bd2 {[%emt 0:00:09]} Nc5 {[%emt 0:05:14]} 53. Kd6 {[%emt 0:00:56]} Nd3 {[%emt 0:00:06]} 54. Bg5 {[%emt 0:03:13]} a5 {[%emt 0:03:26]} 55. f4 {[%emt 0:06:44]} a4 {[%emt 0:05:38]} 56. Kc6 {[%emt 0:02:38]} e5 {[%emt 0:02:24]} 57. f5 {[%emt 0:07:16]} gxf5 {[%emt 0:04:23]} 58. exf5 {[%emt 0:00:06]} Nf4 {[%emt 0:01:27]} 59. Kd6 {[%emt 0:00:40]} Nd3 {[%emt 0:00:40]} 60. Kd5 {[%emt 0:00:37]} Nb2 {[%emt 0:00:06]} 61. Bd8 {[%emt 0:00:54]} Nd3 {[%emt 0:00:43]} 62. Bg5 {[%emt 0:06:40]} Nb2 {[%emt 0:00:07]} 63. Kc5 {[%emt 0:00:05]} Nd3+ {[%emt 0:00:00]} 64. Kc4 {[%emt 0:00:00]} Nf2 {[%emt 0:00:00]} 65. Kb4 {[%emt 0:00:00]} Ne4 {[%emt 0:00:00]} 66. Bd8 {[%emt 0:00:00]} Nd6 {[%emt 0:00:00]} 67. Kxa4 {[%emt 0:00:00]} Nxf5 {[%emt 0:00:00]} 68. Kb5 {[%emt 0:00:00]} Ke8 {[%emt 0:00:00]} 69. Bg5 {[%emt 0:00:00]} Kd7 {[%emt 0:00:00]} 70. Kc5 {[%emt 0:00:00]} Kc7 {[%emt 0:00:00]} 71. Kd5 {[%emt 0:00:00]} Kb7 {[%emt 0:00:00]} 72. Kxe5 {[%emt 0:00:00]} Nxh4 {[%emt 0:00:00]} 73. Bxh4 {[%emt 0:00:00]} Ka8 {[%emt 0:00:00]} 74. Ke4 {[%emt 0:00:07]} 1/2-1/2

[Event "44th Chess Olympiad Women 2022"]
[Site "Chennai"]
[Date "2022.08.10"]
[Round "11.7"]
[White "Medic, Mirjana"]
[Black "Mkrtchian, Lilit"]
[Result "0-1"]
[ECO "E15"]
[WhiteElo "2194"]
[BlackElo "2362"]
[Annotator "ChessBase"]
[PlyCount "86"]
[EventDate "2022.07.29"]
[EventType "team-tourn"]
[EventCountry "IND"]
[SourceTitle "playchess.com"]
[Source "ChessBase"]
[SourceQuality "1"]
[WhiteTeam "Croatia"]
[BlackTeam "Armenia"]
[WhiteTeamCountry "CRO"]
[BlackTeamCountry "ARM"]
[TimeControl "40/5400+30:1800+30"]

1. d4 {[%emt 0:00:02]} Nf6 {[%emt 0:00:27]} 2. c4 {[%emt 0:00:07]} e6 {[%emt 0:02:38]} 3. Nf3 {[%emt 0:00:32]} b6 {[%emt 0:01:50]} 4. g3 {[%emt 0:00:28]} Ba6 {[%emt 0:00:25]} 5. b3 {[%emt 0:00:15]} Bb4+ {[%emt 0:00:35]} 6. Bd2 {[%emt 0:00:09]} Be7 {[%emt 0:00:05]} 7. Bg2 {[%emt 0:00:35]} d5 {[%emt 0:01:06]} 8. cxd5 {[%emt 0:03:37]} exd5 {[%emt 0:00:06]} 9. Nc3 {[%emt 0:00:27]} O-O {[%emt 0:00:12]} 10. O-O {[%emt 0:01:53]} Re8 {[%emt 0:00:03]} 11. Re1 {[%emt 0:05:01]} Bb7 {[%emt 0:02:15]} 12. Qc2 {[%emt 0:07:53]} Nbd7 {[%emt 0:04:37]} 13. a3 {[%emt 0:04:56]} c5 {[%emt 0:02:04]} 14. Qb2 {[%emt 0:02:27]} Ne4 {[%emt 0:04:54]} 15. Be3 {[%emt 0:05:17]} Bf6 {[%emt 0:02:39]} 16. Rac1 {[%emt 0:00:52]} h5 {[%emt 0:08:16]} 17. b4 {[%emt 0:02:01]} Nd6 {[%emt 0:23:36]} 18. Qa2 {[%emt 0:06:05]} Nc4 {[%emt 0:05:04]} 19. bxc5 {[%emt 0:04:52]} bxc5 {[%emt 0:00:37]} 20. dxc5 {[%emt 0:02:45]} Nxe3 {[%emt 0:09:50]} 21. fxe3 {[%emt 0:00:03]} Nxc5 {[%emt 0:00:17]} 22. Red1 {[%emt 0:02:48]} Qe7 {[%emt 0:04:21]} 23. Nxd5 {[%emt 0:12:20]} Bxd5 {[%emt 0:00:08]} 24. Qxd5 {[%emt 0:00:05]} Qxe3+ {[%emt 0:00:07]} 25. Kh1 {[%emt 0:00:24]} Ne4 {[%emt 0:10:08]} 26. Rf1 {[%emt 0:01:51]} Rad8 {[%emt 0:00:19]} 27. Qc6 {[%emt 0:04:35]} Nf2+ {[%emt 0:00:57]} 28. Rxf2 {[%emt 0:00:04]} Qxf2 {[%emt 0:00:05]} 29. Rf1 {[%emt 0:00:52]} Qxe2 {[%emt 0:01:26]} 30. h3 {[%emt 0:03:53]} Rd1 {[%emt 0:05:18]} 31. Qxe8+ {[%emt 0:01:18]} Qxe8 {[%emt 0:00:05]} 32. Rxd1 {[%emt 0:00:04]} Qe3 {[%emt 0:00:40]} 33. Re1 {[%emt 0:01:44]} Qxa3 {[%emt 0:00:20]} 34. h4 {[%emt 0:03:36]} a5 {[%emt 0:01:06]} 35. Kh2 {[%emt 0:01:06]} g6 {[%emt 0:05:25]} 36. Re2 {[%emt 0:04:12]} a4 {[%emt 0:00:20]} 37. Ng5 {[%emt 0:00:46]} Bxg5 {[%emt 0:01:19]} 38. hxg5 {[%emt 0:00:03]} Qc5 {[%emt 0:00:40]} 39. Re8+ {[%emt 0:00:43]} Kg7 {[%emt 0:00:07]} 40. Ra8 {[%emt 0:00:06]} a3 {[%emt 0:01:44]} 41. Kh3 {[%emt 0:30:56]} Qb4 {[%emt 0:05:12]} 42. Bd5 {[%emt 0:00:00]} Qg4+ {[%emt 0:01:41]} 43. Kh2 {[%emt 0:00:00]} Qxg5 {[%emt 0:00:18]} 0-1

[Event "44th Chess Olympiad Women 2022"]
[Site "Chennai"]
[Date "2022.08.10"]
[Round "11.7"]
[White "Radikovic, Anamarija"]
[Black "Mkrtchyan, Mariam"]
[Result "1-0"]
[ECO "C83"]
[WhiteElo "2099"]
[BlackElo "2285"]
[Annotator "ChessBase"]
[PlyCount "79"]
[EventDate "2022.07.29"]
[EventType "team-tourn"]
[EventCountry "IND"]
[SourceTitle "playchess.com"]
[Source "ChessBase"]
[SourceQuality "1"]
[WhiteTeam "Croatia"]
[BlackTeam "Armenia"]
[WhiteTeamCountry "CRO"]
[BlackTeamCountry "ARM"]
[TimeControl "40/5400+30:1800+30"]

1. e4 {[%emt 0:00:01]} e5 {[%emt 0:00:07]} 2. Nf3 {[%emt 0:00:05]} Nc6 {[%emt 0:00:03]} 3. Bb5 {[%emt 0:00:04]} a6 {[%emt 0:00:09]} 4. Ba4 {[%emt 0:00:05]} Nf6 {[%emt 0:00:03]} 5. O-O {[%emt 0:00:07]} Nxe4 {[%emt 0:00:16]} 6. d4 {[%emt 0:00:05]} b5 {[%emt 0:00:02]} 7. Bb3 {[%emt 0:00:06]} d5 {[%emt 0:00:01]} 8. dxe5 {[%emt 0:00:08]} Be6 {[%emt 0:00:01]} 9. Nbd2 {[%emt 0:00:08]} Be7 {[%emt 0:00:22]} 10. c3 {[%emt 0:00:06]} O-O {[%emt 0:00:09]} 11. Bc2 {[%emt 0:00:12]} f5 {[%emt 0:00:13]} 12. Nb3 {[%emt 0:00:14]} Qd7 {[%emt 0:00:37]} 13. Nbd4 {[%emt 0:00:09]} Nxd4 {[%emt 0:00:14]} 14. Nxd4 {[%emt 0:00:07]} c5 {[%emt 0:00:02]} 15. Nxe6 {[%emt 0:00:10]} Qxe6 {[%emt 0:00:03]} 16. f3 {[%emt 0:00:11]} Ng5 {[%emt 0:00:01]} 17. a4 {[%emt 0:02:05]} Rad8 {[%emt 0:00:11]} 18. axb5 {[%emt 0:00:50]} axb5 {[%emt 0:00:03]} 19. b4 {[%emt 0:08:34]} cxb4 {[%emt 0:26:49]} 20. cxb4 {[%emt 0:00:06]} Qxe5 {[%emt 0:05:13]} 21. Ra5 {[%emt 0:13:04]} Qc3 {[%emt 0:18:27]} 22. Rxb5 {[%emt 0:04:16]} d4 {[%emt 0:00:24]} 23. Bd2 {[%emt 0:11:32]} Qb2 {[%emt 0:07:03]} 24. Bxf5 {[%emt 0:10:28]} Nf7 {[%emt 0:00:58]} 25. Rb7 {[%emt 0:08:48]} Bf6 {[%emt 0:02:43]} 26. Be6 {[%emt 0:00:07]} d3 {[%emt 0:00:53]} 27. Qc1 {[%emt 0:08:45]} Qd4+ {[%emt 0:06:29]} 28. Kh1 {[%emt 0:00:07]} Qe5 {[%emt 0:07:29]} 29. Re1 {[%emt 0:03:18]} Qh5 {[%emt 0:02:15]} 30. Qc7 {[%emt 0:00:35]} g5 {[%emt 0:02:06]} 31. b5 {[%emt 0:04:59]} Qg6 {[%emt 0:02:40]} 32. b6 {[%emt 0:07:54]} Bd4 {[%emt 0:01:47]} 33. Bxf7+ {[%emt 0:00:21]} Qxf7 {[%emt 0:00:13]} 34. Re7 {[%emt 0:01:15]} Qg6 {[%emt 0:05:37]} 35. Qc4+ {[%emt 0:02:51]} Kh8 {[%emt 0:00:01]} 36. Bc3 {[%emt 0:00:28]} Bf6 {[%emt 0:06:07]} 37. Bxf6+ {[%emt 0:03:31]} Rxf6 {[%emt 0:00:01]} 38. Qc7 {[%emt 0:00:10]} Ra8 {[%emt 0:01:09]} 39. Ra7 {[%emt 0:03:48]} Re8 {[%emt 0:04:54]} 40. Rxe8+ {[%emt 0:00:07]} 1-0